Cogmind - Beta 16 --- EXPLORER MODE // 2026.01.06 @ 09:29:48 Player: K.K.Y. Result: Destroyed by 5O-VGV(R) with Subdweller Laser Performance ------------- Evolutions (0) 0 Regions Visited (3) 600 Robots Destroyed (49) 245 Value Destroyed (1073) 1073 Prototype IDs (0) 0 Alien Tech Used (0) 0 Bonus (0) 0 TOTAL SCORE: 1918 Bonus ------- None Cogmind --------- Core Integrity 0/250 Matter 210/300 Energy 265/265 System Corruption 0% Temperature Cool (6) Movement Treading (160) Location -10/Subcaves Parts ------- > --- POWER (1) -------- Reinforced Ion Engine > --- PROPULSION (2) --- Spiked Treads Spiked Treads > --- UTILITY (3) ------ Large Storage Unit Structural Scanner Sensor Array > --- WEAPON (2) ------- Improved Light Cannon Battle Cannon > --- INVENTORY (15) --- Improved Heat Sink Medium Storage Unit Huge Storage Unit Improved Targeting Computer Improved Targeting Computer Medium Armor Plating Medium Armor Plating Medium Armor Plating Medium Armor Plating Improved Light Cannon Mining Laser Multitool Peak State ------------ > --- POWER ------------ Reinforced Ion Engine > --- PROPULSION ------- Spiked Treads Spiked Treads > --- UTILITY ---------- Large Storage Unit Improved Targeting Computer Improved Targeting Computer > --- WEAPON ----------- Improved Light Cannon Battle Cannon > --- INVENTORY -------- Improved Heat Sink Medium Storage Unit Huge Storage Unit Structural Scanner Sensor Array Improved Targeting Computer Improved Targeting Computer Medium Armor Plating Medium Armor Plating Medium Armor Plating Medium Armor Plating Improved Light Cannon Improved Light Cannon Mining Laser Multitool [Rating: 17] Favorites ----------- Power Reinforced Ion Engine Engine Reinforced Ion Engine Power Core Light Nuclear Core Propulsion Light Treads Treads Light Treads Wheel Wheel Utility Improved Targeting Computer Device Sensor Array Storage Large Storage Unit Processor Improved Targeting Computer Protection Medium Armor Plating Weapon Improved Light Cannon Energy Gun Medium Laser Ballistic Cannon Improved Light Cannon Special Weapon Mining Laser Build | -11 -10 -10 -10 ------- Run | Yrd Mat Min Sub Slots Evolved 1 | . 1 . . Power . | . . . . Propulsion . | . . . . Utility 1 | . 1 . . Weapon . | . . . . Parts Attached 31 | 4 18 1 8 Power 4 | 1 2 . 1 Engine 3 | 1 1 . 1 Core 1 | . 1 . . Reactor . | . . . . Propulsion 9 | 2 4 1 2 Treads 4 | . 1 1 2 Leg . | . . . . Wheel 5 | 2 3 . . Hover . | . . . . Flight . | . . . . Utility 10 | . 8 . 2 Device 4 | . 2 . 2 Storage 3 | . 3 . . Processor 2 | . 2 . . Hackware . | . . . . Protection 1 | . 1 . . Artifact . | . . . . Weapon 8 | 1 4 . 3 Energy Gun 1 | 1 . . . Energy Cannon . | . . . . Ballistic Gun . | . . . . Ballistic Cannon 5 | . 2 . 3 Launcher . | . . . . Special Weapon 2 | . 2 . . Impact Weapon . | . . . . Slashing Weapon . | . . . . Piercing Weapon . | . . . . Special Melee Weapon . | . . . . Unidentified Prototypes . | . . . . Parts Lost 7 | . 5 . 2 Power 1 | . . . 1 Propulsion 2 | . 2 . . Utility 1 | . 1 . . Weapon 3 | . 2 . 1 Highest Loss Streak 2 | . 2 . 1 To Critical Strikes 1 | . . . 1 Average Backups 13 | 3 10 15 14 Power . | . . 1 . Propulsion . | . . . . Utility 10 | 1 8 11 10 Weapon 2 | . 1 2 2 Tool/Special . | . . . . Unused Backups 10 | . . 1 9 Power . | . . . . Propulsion . | . . . . Utility 7 | . . 1 6 Weapon 2 | . . . 2 Tool/Special 1 | . . . 1 Average Slot Usage (%) 94 | . 82 94 99 Engine 6 | . 1 . 11 Core 5 | . 10 12 . Treads 18 | . 2 19 25 Wheel 4 | . 20 . . Device 4 | . 4 . 5 Storage 10 | . 7 12 12 Processor 19 | . 14 25 19 Ballistic Cannon 22 | . 14 25 24 Peak Build Rating 17 | 4 16 16 17 Average Rating 14 | 1 12 15 15 On Entrance 8 | . 4 15 16 Avg Prop Armor Cover (%) . | . . . . Naked Turns . | . . . . Heaviest Build 39 | 5 34 33 39 Greatest Support 40 | 20 20 40 40 Greatest Overweight (x) 1 | . 1 1 . Average Overweight (x) . | . . . . Largest Inventory Capacity 25 | 5 25 15 15 Average Capacity 13 | 5 10 15 15 Most Carried 15 | 5 15 15 15 Average Carried 13 | 4 10 15 14 Final Capacity 15 | 5 15 15 15 Final Carried 15 | 3 15 15 12 Class Distribution -------------------- 94% | Hacker-Mutant 5% | Scavenger-Mutant Dominant Class ---------------- Hacker-Mutant | -10/Materials Hacker-Mutant | -10/Mines Hacker-Mutant | -10/Subcaves Resources | -11 -10 -10 -10 ----------- Run | Yrd Mat Min Sub Matter Collected 1179 | 240 175 166 598 Remotely . | . . . . Salvage Created 1036 | 129 430 162 315 Parts 60 | 4 23 11 22 Haulers Intercepted 2 | . 2 . . Recyclers Shooed 3 | 2 1 . . Parts Field Recycled . | . . . . Retrieved Matter . | . . . . Parts Self-Destructed . | . . . . Prevented . | . . . . Parts Restored . | . . . . Kills | -11 -10 -10 -10 ------- Run | Yrd Mat Min Sub Combat Hostiles Destroyed 30 | . 8 8 14 Guns 4 | . 4 . . Cannons 26 | . 4 8 14 Classes Destroyed 11 | 3 4 1 3 Worker 4 | 2 1 1 . Builder 2 | . 1 1 . Tunneler 1 | 1 . . . Hauler 2 | . 2 . . Recycler 3 | 1 1 1 . Turret 2 | . . . 2 Watcher 3 | . 3 . . Swarmer 10 | . . 6 4 Grunt 12 | . 8 2 2 Artisan 1 | . . . 1 Subdweller 10 | . . . 10 Best Kill Streak 6 | 2 5 2 6 Combat Bots Only 4 | . 4 2 4 Max Kills in Single Turn 2 | 1 1 2 1 Gunslinging . | . . . . Exploded . | . . . . Melee . | . . . . Uniques/NPCs Destroyed . | . . . . Combat | -11 -10 -10 -10 -------- Run | Yrd Mat Min Sub Hostile Shots Fired 210 | . 104 22 84 Missed 62 | . 30 9 23 Hits 148 | . 74 13 61 Projectile 148 | . 74 13 61 Critical Strikes 3 | . 2 . 1 Damage Taken 1170 | . 572 54 544 Core 259 | . 188 9 62 Absorbed by Shields . | . . . . Ignored by Resistances 728 | . 355 41 332 Core Remaining (%) 100 | 100 . . . Volleys Fired 175 | 19 66 16 74 Largest 2 | 1 2 2 2 Hottest 200 | 50 200 66 66 Shots Fired 273 | 19 75 32 147 Gun 64 | 19 45 . . Cannon 187 | . 8 32 147 Launcher . | . . . . Special 22 | . 22 . . Kinetic 187 | . 8 32 147 Thermal 86 | 19 67 . . Explosive . | . . . . Electromagnetic . | . . . . Robot Hit Streak 33 | 19 21 8 33 Robot Miss Streak 2 | . 2 1 1 Penetration Max . | . . . . Secondary Targets . | . . . . Shots Hit Robots 196 | 19 62 23 92 Core Hits 68 | 5 23 10 30 Critical Kills . | . . . . Critical Parts Destroyed . | . . . . Critical Strikes 11 | 3 3 4 1 Burn 6 | 3 3 . . Blast 5 | . . 4 1 Melee Attacks . | . . . . Impact . | . . . . Slashing . | . . . . Piercing . | . . . . Sneak Attacks . | . . . . Combat Hostiles . | . . . . Follow-up Attacks . | . . . . Damage Inflicted 3445 | 238 1011 451 1745 Guns 737 | 238 499 . . Cannons 2269 | . 88 436 1745 Explosions . | . . . . Melee . | . . . . Ramming 31 | . 16 15 . Kinetic 2269 | . 88 436 1745 Thermal 1145 | 238 907 . . Explosive . | . . . . Electromagnetic . | . . . . Impact . | . . . . Slashing . | . . . . Piercing . | . . . . Highest Corruption . | . . . . Average Corruption . | . . . . Corruption Purged . | . . . . Corruption Blocked . | . . . . Overload Shots . | . . . . Overflow Damage 25 | . 6 12 7 Projectiles 25 | . 6 12 7 Explosions . | . . . . Melee . | . . . . Knockbacks 26 | . 1 6 19 Impact 1 | . . 1 . Kinetic 25 | . 1 5 19 Secondary . | . . . . Self-Inflicted Damage 8 | . 8 . . Shots . | . . . . Rammed 4 | . 1 3 . Targets Rammed 4 | . 1 3 . Kicked . | . . . . Crushed . | . . . . Highest Temperature 445 | 25 445 54 . Average Temperature 94 | 25 132 20 . Received Heat Transfer 723 | . 537 6 180 Effects 3 | . 3 . . Energy Bleed 2 | . 2 . . Damage (minor) 1 | . 1 . . Siege Activations . | . . . . Martial Activations . | . . . . Shielding Activations . | . . . . Robots Disrupted . | . . . . Combat Hostiles . | . . . . Robots Corrupted . | . . . . Combat Hostiles . | . . . . Parts Fried . | . . . . Impact Corruptions . | . . . . Robots Melted . | . . . . Combat Hostiles . | . . . . Parts Melted 3 | 1 2 . . Heat Transferred 3477 | 925 2552 . . Parts Sabotaged . | . . . . Parts Stolen . | . . . . Parts Stripped . | . . . . Power Chain Reactions . | . . . . Alert | -11 -10 -10 -10 ------- Run | Yrd Mat Min Sub Maximum Alert Level . | . . . . Low Security (%) 100 | 100 100 100 . Level 1 . | . . . . Level 2 . | . . . . Level 3 . | . . . . Level 4 . | . . . . Level 5 . | . . . . High Security . | . . . . Max Security . | . . . . Peak Influence 93 | 10 50 93 . Initial . | . . . . Average 4 | 2 3 6 . Influence Increases 709 | 20 264 230 195 Destroy 0b10 Robot/C 440 | . 160 160 120 Destroy 0b10 Robot/NC 75 | 20 40 15 . Destroy Leader 80 | . 40 40 . Allied During Kill 6 | . . 6 . Disable Machine 12 | . 4 8 . Destroy Structure 6 | . 5 1 . Lose Combat Pursuer 90 | . 15 . 75 Influence Decreases 709 | 20 264 230 195 Time Decay 678 | 20 233 230 195 Lost Part 31 | . 31 . . Squads Dispatched . | . . . . Investigation . | . . . . Extermination . | . . . . Reinforcement . | . . . . Assault . | . . . . Garrison . | . . . . Intercept . | . . . . Searches Triggered . | . . . . Construction Impeded . | . . . . Haulers Reinforced . | . . . . Active Scanning Responses . | . . . . Cargo Convoy Interrupts . | . . . . Stealth | -11 -10 -10 -10 --------- Run | Yrd Mat Min Sub Distress Signals . | . . . . Communications Jammed . | . . . . Distress Signals . | . . . . Times Spotted 44 | . 15 10 19 Peak Tracking Total 4 | . 4 2 3 Tactical Retreats 3 | . 1 . 2 Traps | -11 -10 -10 -10 ------- Run | Yrd Mat Min Sub Traps Triggered 2 | . 2 . . Indirectly . | . . . . Trap Hack Attempts . | . . . . Triggered . | . . . . Disarmed . | . . . . Reprogrammed . | . . . . Reused . | . . . . Traps Extracted . | . . . . Installed . | . . . . Triggered . | . . . . Machines | -11 -10 -10 -10 ---------- Run | Yrd Mat Min Sub Machines Disabled 5 | . 1 2 2 Max in Single Turn 1 | . 1 1 1 Machines Repaired . | . . . . Machines Dismantled . | . . . . Machines Sabotaged . | . . . . Overloaded Fab Kills . | . . . . Hacking | -11 -10 -10 -10 --------- Run | Yrd Mat Min Sub Machines Accessed 2 | . 1 . 1 Terminals 1 | . 1 . . Fabricators . | . . . . Repair Stations . | . . . . Recycling Units . | . . . . Scanalyzers . | . . . . Garrison Access . | . . . . Total Hacks 7 | . 2 . 5 Successful 5 | . . . 5 Failed 2 | . 2 . . Catastrophic . | . . . . Database Lockouts . | . . . . Manual 2 | . 2 . . Terminals 2 | . 2 . . Fabricators . | . . . . Repair Stations . | . . . . Recycling Units . | . . . . Scanalyzers . | . . . . Garrison Access . | . . . . Terminal Hacks 5 | . . . 5 Record 5 | . . . 5 Fabricator Hacks . | . . . . Repair Station Hacks . | . . . . Recycling Unit Hacks . | . . . . Scanalyzer . | . . . . Garrison Access Hacks . | . . . . Unauthorized Hacks . | . . . . Terminals . | . . . . Fabricators . | . . . . Repair Stations . | . . . . Recycling Units . | . . . . Scanalyzers . | . . . . Garrison Access . | . . . . Data Cores Recovered . | . . . . Used . | . . . . Hacking Detections 1 | . 1 . . Full Trace Events . | . . . . Feedback Events . | . . . . Feedback Blocked . | . . . . Robot Schematics Acquired . | . . . . Robots Built . | . . . . Authchips . | . . . . Time . | . . . . Total Robot Build Rating . | . . . . Part Schematics Acquired . | . . . . Parts Built . | . . . . Authchips . | . . . . Time . | . . . . Total Part Build Rating . | . . . . Part Studies Acquired . | . . . . Parts Repaired . | . . . . Time . | . . . . Parts Recycled . | . . . . Recycled Matter . | . . . . Retrieved Matter . | . . . . Retrieved Components . | . . . . Parts Scanalyzed . | . . . . Part Schematics Acquired . | . . . . Parts Damaged . | . . . . Bothacking | -11 -10 -10 -10 ------------ Run | Yrd Mat Min Sub Used RIF Installer . | . . . . Robots Hacked . | . . . . Non-combat . | . . . . Combat . | . . . . Robot Hacks Applied . | . . . . Relay Couplers Released . | . . . . Fabnet Peak Effective % . | . . . . Robots Rewired . | . . . . Allies Hacked . | . . . . Hacks Repelled . | . . . . Allies | -11 -10 -10 -10 -------- Run | Yrd Mat Min Sub Total Allies 4 | . . 4 . Largest Group 4 | . . 4 3 Highest-Rated Group 71 | . . 71 40 Highest-Rated Ally 31 | . . 31 16 Total Orders . | . . . . Ally Attacks 4 | . . . 4 Total Damage 25 | . . . 25 Kills . | . . . . Allies Corrupted . | . . . . Allies Melted . | . . . . Intel | -11 -10 -10 -10 ------- Run | Yrd Mat Min Sub Active Infowar (turns) 809 | . . . 809 Sensors 809 | . . . 809 Structural 808 | . . . 808 Robot Analysis Total . | . . . . Derelict Logs Recovered 3 | . . . 3 Drone Launches . | . . . . Drone Recoveries . | . . . . Exploration | -11 -10 -10 -10 ------------- Run | Yrd Mat Min Sub Turns Passed 6862 | 127 1626 1676 3433 Spaces Moved 3689 | 64 853 810 1962 Core 57 | 57 . . . Treads 2884 | . 112 810 1962 Legs . | . . . . Wheels 748 | 7 741 . . Hover . | . . . . Flight . | . . . . Fastest Speed 50 | 50 80 160 160 Average Speed 151 | 53 105 189 160 Slowest Speed 240 | 80 240 240 160 Overloaded Moves . | . . . . Propulsion Burnouts . | . . . . Robots Hopped . | . . . . Potential Cave-ins . | . . . . Cave-ins Triggered . | . . . . Exploration Rate (%) 67 | 5 98 99 69 Regions Visited 3 Branch Regions 2 Pre-discovered Areas 2 | . . . 2 Known Exits Taken 3 | 1 1 1 . Unknown Exits Taken . | . . . . Scrap Searched 8 | . . . 8 Spaces Dug . | . . . . Terrain Destroyed 6 | . 4 1 1 Melee . | . . . . Projectile 6 | . 4 1 1 AOE . | . . . . Terrain Rammed . | . . . . Walls Destroyed . | . . . . Machines Disabled . | . . . . Actions | -11 -10 -10 -10 --------- Run | Yrd Mat Min Sub Total 4627 | 137 1463 918 2109 Wait 687 | 45 497 87 58 Move 3686 | 63 852 809 1962 Hop . | . . . . Pick Up 29 | 6 20 1 2 Fast Attach 8 | 1 6 1 . Attach 11 | 3 6 . 2 Detach 1 | . 1 . . Swap 13 | . 7 . 6 Drop 13 | . 7 1 5 Fire 175 | 19 66 16 74 Melee . | . . . . Ram 1 | . 1 . . Kick . | . . . . Crush 3 | . . 3 . Escape Stasis . | . . . . Rewire . | . . . . Trap . | . . . . Miscellaneous . | . . . . Route ------- -11/Scrapyard -10/Materials (discovered 5 exits: *Mat x3 / *Min x2) -10/Mines (discovered 3 exits: *Mat x2 / *Sub) -10/Subcaves (discovered 3 exits: *Mat / *Rec / [*Scr]) History --------- Turn | Location | Event 13 | -11/Scrapyard | Identified exit to Materials 13 | -11/Scrapyard | Discovered exit to Materials (range 16) 128 | -11/Scrapyard | Entered Materials 128 | -10/Materials | Evolved 1 slot: Utility x1 222 | -10/Materials | Identified exit to Mines 222 | -10/Materials | Discovered exit to Mines (range 16) 269 | -10/Materials | Identified exit to Materials 269 | -10/Materials | Discovered exit to Materials (range 3) 315 | -10/Materials | Build established: Hacker-Mutant 484 | -10/Materials | Core integrity fell below 50% 554 | -10/Materials | Discovered exit to Materials (range 3) 681 | -10/Materials | Build established: Scavenger-Mutant 863 | -10/Materials | Discovered exit to Materials (range 8) 879 | -10/Materials | Discovered exit to Mines (range 16) 1065 | -10/Materials | Build established: Hacker-Mutant 1754 | -10/Materials | Entered Mines 1927 | -10/Mines | Joined a pair of Derelicts in attacking an 0b10 outpost 2141 | -10/Mines | Assisted by bots powering up and referring to "LRC-V3" 2184 | -10/Mines | Discovered exit to Materials (range 11) 2760 | -10/Mines | Discovered exit to Materials (range 11) 2824 | -10/Mines | Received a Mining Laser from a helpful Derelict 2922 | -10/Mines | Deemed a non-threat by the Exiles lab entrance 3000 | -10/Mines | A weapon hastily lodged in a ceiling crevice suddenly fell to the ground 3416 | -10/Mines | Identified exit to Subcaves 3416 | -10/Mines | Discovered exit to Subcaves (range 6) 3430 | -10/Mines | Entered Subcaves 3430 | -10/Subcaves | Accompanied by 3 allies 3431 | -10/Subcaves | Approached by a straggling Scientist 3597 | -10/Subcaves | Lost 3 allies 3755 | -10/Subcaves | Identified exit to Materials 3755 | -10/Subcaves | Discovered exit to Materials (range 6) 4087 | -10/Subcaves | Ambushed by angry Subdweller bent on revenge 4089 | -10/Subcaves | Core integrity fell below 20% 4242 | -10/Subcaves | Learned location of Zion (-6) 4741 | -10/Subcaves | Scientist uncovered a shortcut to Scraptown 4749 | -10/Subcaves | Visited Clippyterm 4753 | -10/Subcaves | Identified exit to Recycling 4753 | -10/Subcaves | Learned location of Extension (-4) 5547 | -10/Subcaves | Learned Materials trap positions 6771 | -10/Subcaves | Shifting Twisted Machinery released Sub. Laser 6774 | -10/Subcaves | Shifting Twisted Machinery released Mak. Leg 6855 | -10/Subcaves | Disturbed a concealed Subdweller 6863 | -10/Subcaves | Destroyed by 5O-VGV(R) with Subdweller Laser Last Messages --------------- 06091_ 96-4IN(R) knocked back. 06110_ Destroyed Scrap Shield. 06113_ 96-4IN(R) destroyed. 06116_ Acquired 2 matter. 06121_ Acquired 5 matter. 06197_ Critical hit (Destroy). 06197_ Imp. Light Cannon destroyed. 06208_ 2D-NHA(R) destroyed. 06224_ Acquired 8 matter. 06227_ Acquired 12 matter. 06249_ Acquired 9 matter. 06678_ Subatomizers dissect the Sub. Power Source. Sub. Laser falls loose from the Twisted Machinery. Mak. Leg falls loose from the Twisted Machinery. 06855_ 5O-VGV(R) angrily emerges from the Twisted Machinery. 06860_ 5O-VGV(R) knocked back. 06861_ Acquired 1 matter. Map ----- +----------------------------------------------------+ | | | | | | | | | | | | | ?????????????????????????????????????????????????? | | ?????????????????????????????????????????????????? | | ?????????????????????????????????????????????????? | | ?????????????????????????????????????????????????? | | ?????????????????????????????????????????????????? | | ?????????????????????????????????????????????????? | | ?????????????????????????????????????????????????? | | ?????????????????????????????????????????????????? | | ?????????????????????????????????????????????????? | | ?????????????????????????????????????????????????? | | ?????????????????????????????????????????????????? | | ?????????????????????????????????????????????????? | | ?????????????????????????????????????????????????? | | ??????????????????????####???????????????????????? | | ???????????????######?####???????????????????????? | | ????#####??????#########< ?????????????????????? | | ???############## #####&## ????????????????????? | | ???###"########## ### R#####??????????????????? | | ??###""""## ### ## <######????????????????? | | ?#### """"" ### #@## ####????????????????? | | ?### ""="" ## < < ##????????????????? | | ?## "" "" # ##????????????????? | | ?### "" "" ##????????????????? | | #### "" "" # ## ##??????????? | | ### "" ""## ### ##??????????? | | ["" " "" ### ??????????? | | "" ## ## ###?? ???????????? | | "" ### ### ## #####??#### ??????????? | | "" ###############???##### #??????????? | | ### ##"" #############?????????? ##??????????? | | ##### ##"" ####??????????????????###??????????? | | ##### "" ###???????????????????????????????? | | ??## ###" ##???????????????????????????????? | | ??### ####" ##???????????????????????????????? | | ??########## ##???????????????????????????????? | | ???######### ###???????????????????????????????? | | ???????## ###???????????????????????????????? | | ???????## ##???????????????????????????????? | | ???????### ##???????????????????????????????? | | ???????###### ###???????????????????????????????? | | ????????##### ###???????????????????????????????? | | ??????????## ##???????????????????????????????? | | ????#####?### ##???????????????????????????????? | | ???######### ###???????????????????????????????? | +----------------------------------------------------+ Best States ------------- Heat Dissipation 53 Energy Generation 14 Energy Capacity 265 Matter Stores 300 Matter Capacity 300 Sight Range 16 Robot Scan Range 14 Terrain Scan Density 10 Armor Coverage 225 Resistance: KI 35 Resistance: TH 35 Resistance: EX 35 Resistance: EM 35 Resistance: I 35 Resistance: S 35 Resistance: P 35 Evasion (%) 50 Targeting Accuracy 12 Recoil Reduction 2 Offensive Hacking 20 Item Schematics ----------------- None Robot Schematics ------------------ None Fabricated ------------ Nothing Repaired ---------- Nothing Studied --------- None Alien Tech Used ----------------- None Achievements -------------- None Challenges ------------ None Game ------ Seed FusionStealthSegregator Manual? 0 Play Time 00:27:43 Cumulative 251.1 hours Start 2026.01.06 @ 09:07:27 End 2026.01.06 @ 09:29:48 Sessions 1 Manual Loads 0 Difficulty Explorer Special Mode None Game No. 393 Rogue 0 Adventurer 0 Explorer 393 Win Type - Total 0 Types 0/0/0/0/0/0/0/0/0/0 Lore% 72 Gallery% 69 Achievement% 54 Wizard Run 0 Options --------- Layout 1 ASCII 0 Keyboard 0 Movement Mouse Keybinds 0 Fullscreen 1 Font 24/Smallcaps Map View 50x35 Zoom Use 0% Tactical HUD 1 Map Filters NONE Filters NONE Steam 1 RUN: 3ef05f06-c4fe-44f0-a509-3a3a5ffa064d